fUST/lending_fUST_20241016
["ID","MTS","AMOUNT","RATE_DAILY","PERIOD"]
[340303659,1729009896232,-1724.34,0.00038356,30]
[340303660,1729009896242,-557.39246314,0.00038356,30]
[340303661,1729009896251,-500.0,0.00038356,30]
[340303662,1729009896261,-500.0,0.00038356,30]
[340303663,1729009896271,-500.0,0.00038356,30]
[340303664,1729009896280,-505.26317918,0.00038356,30]
[340303665,1729009896290,-500.0,0.00038356,30]
[340303666,1729009896299,-761.67,0.00038356,30]
[340303667,1729009896308,-500.0,0.00038356,30]
[340303668,1729009896318,-5876.9,0.00038356,30]
[340303669,1729009896327,-1121.68,0.00038356,30]
[340303670,1729009896336,-507.86765304,0.00038356,30]
[340303671,1729009896346,-500.0,0.00038356,30]
[340303672,1729009896356,-500.0,0.00038356,30]
[340303673,1729009896366,-584.13,0.00038356,30]
[340303674,1729009896376,-506.64766431,0.00038356,30]
[340303675,1729009896387,-771.59,0.00038356,30]
[340303676,1729009896396,-507.13268165,0.00038356,30]
[340303677,1729009896406,-517.68172769,0.00038356,30]
[340303678,1729009896415,-500.0,0.00038356,30]
[340303679,1729009896426,-500.0,0.00038356,30]
[340303680,1729009896435,-500.0,0.00038356,30]
[340303681,1729009896445,-1991.97,0.00038356,30]
[340303682,1729009896455,-500.0,0.00038356,30]
[340303683,1729009896467,-539.76,0.00038356,30]
[340303684,1729009896477,-500.0,0.00038356,30]
[340303685,1729009896487,-507.15850119,0.00038356,30]
[340303686,1729009896496,-500.0,0.00038356,30]
[340303687,1729009896506,-542.14,0.00038356,7]
[340303688,1729009896516,-633.15,0.00038356,30]
[340303689,1729009896526,-754.14,0.00038356,30]
[340303690,1729009896535,-507.04009459,0.00038356,30]
[340303691,1729009896545,-663.08,0.00038356,30]
[340303692,1729009896555,-500.0,0.00038356,30]
[340303693,1729009896564,-178.61829747,0.00038356,30]
[340303694,1729009896574,-500.0,0.00038356,30]
[340303695,1729009896584,-204.57428678,0.00038356,30]
[340303696,1729009896593,-500.0,0.00038356,30]
[340303697,1729009896603,-525.32,0.00038356,30]
[340303698,1729009896613,-520.74064412,0.00038356,30]
[340303699,1729009896624,-552.34075041,0.00038356,30]
[340303700,1729009896634,-600.58706961,0.00038356,30]
[340303701,1729009896643,-500.0,0.00038356,30]
[340303702,1729009896652,-504.86071139,0.00038356,30]
[340303703,1729009896662,-541.01290664,0.00038356,30]
[340303704,1729009896673,-756.39,0.00038356,30]
[340303705,1729009896682,-1171.6,0.00038356,30]
[340303706,1729009896692,-554.41,0.00038356,30]
[340303707,1729009896701,-500.0,0.00038356,30]
[340303708,1729009896711,-500.0,0.00038356,30]
[340303709,1729009896720,-500.0,0.00038356,30]
[340303710,1729009896729,-553.39,0.00038356,30]
[340303711,1729009896738,-947.4,0.00038356,30]
[340303712,1729009896748,-500.0,0.00038356,30]
[340303713,1729009896757,-500.0,0.00038356,30]
[340303714,1729009896766,-500.0,0.00038356,30]
[340303715,1729009896775,-500.0,0.00038356,30]
[340303716,1729009896785,-500.0,0.00038356,30]
[340303717,1729009896794,-513.31,0.00038356,30]
[340303718,1729009896804,-500.0,0.00038356,30]
[340303719,1729009896814,-500.0,0.00038356,30]
[340303720,1729009896824,-9763.37,0.00038356,30]
[340303721,1729009896834,-500.0,0.00038356,30]
[340303722,1729009896843,-500.0,0.00038356,30]
[340303723,1729009896852,-500.0,0.00038356,30]
[340303724,1729009896861,-224.63926052,0.00038356,2]
[340303725,1729009896872,-527.54298947,0.00038356,30]
[340303726,1729009896883,-500.0,0.00038356,30]
[340303727,1729009896893,-718.5,0.00038356,30]
[340303728,1729009896902,-606.02,0.00038356,30]
[340303729,1729009896912,-500.0,0.00038356,30]
[340303730,1729009896922,-2997.52,0.00038356,21]
[340303731,1729009896932,-500.0,0.00038356,30]
[340303732,1729009896941,-151.0,0.00038356,14]
[340303733,1729009896950,-151.0,0.00038356,14]
[340303734,1729009896959,-151.0,0.00038356,14]
[340303735,1729009896968,-151.0,0.00038356,14]
[340303736,1729009896978,-151.0,0.00038356,14]
[340303737,1729009896988,-151.0,0.00038356,14]
[340303738,1729009896997,-151.0,0.00038356,14]
[340303739,1729009897007,-151.0,0.00038356,14]
[340303740,1729009897016,-151.0,0.00038356,14]
[340303741,1729009897026,-231.457057,0.00038356,14]
[340303742,1729009897036,-3142.886495,0.00038356,120]
[340303743,1729009897045,-151.0,0.00038436,3]
[340303744,1729009897054,-4129.1432784,0.00038525,2]
[340303745,1729009897063,-1500.0,0.00038533,2]
[340303746,1729009897073,-156.1,0.00038571,7]
[340303747,1729009897083,-211.12,0.000386,2]
[340303748,1729009897092,-150.0,0.000386,29]
[340303749,1729009897101,-1000.0,0.00038761,2]
[340303750,1729009897111,-186.65886364,0.00038795,7]
[340303751,1729009897119,-1500.0,0.000388,2]
[340303752,1729009897133,-178.391455,0.00038801,2]
[340303753,1729009897142,-343.117296,0.00038801,2]
[340303754,1729009897151,-500.0,0.00038904,30]
[340303755,1729009897160,-500.0,0.00038904,30]
[340303756,1729009897169,-1269.68,0.00038904,30]
[340303757,1729009897180,-500.0,0.00038904,30]
[340303758,1729009897189,-957.5,0.00038904,30]
[340303759,1729009897199,-946.36,0.00038904,30]
[340303760,1729009897209,-519.6,0.00038904,30]
[340303761,1729009897220,-500.0,0.00038904,30]
[340303762,1729009897229,-500.0,0.00038904,30]
[340303763,1729009897238,-500.0,0.00038904,30]
[340303764,1729009897248,-363.32539729,0.00038904,30]
[340303765,1729009897257,-317.87581603,0.00038904,30]
[340303766,1729009897266,-500.0,0.00038904,30]
[340303767,1729009897276,-500.0,0.00038904,30]
[340303768,1729009897286,-500.0,0.00038904,30]
[340303769,1729009897296,-1000.0,0.00038904,30]
[340303770,1729009897306,-500.0,0.00038904,30]
[340303771,1729009897316,-545.0,0.00038904,30]
[340303772,1729009897326,-410.36962768,0.00038904,30]
[340303773,1729009897335,-500.0,0.00038904,30]
[340303774,1729009897345,-500.0,0.00038904,30]
[340303775,1729009897355,-500.0,0.00038904,30]
[340303776,1729009897364,-500.0,0.00038904,30]
[340303777,1729009897376,-500.0,0.00038904,30]
[340303778,1729009897385,-727.25,0.00038904,30]
[340303779,1729009897394,-834.78,0.00038904,30]
[340303780,1729009897404,-548.13,0.00038904,30]
[340303781,1729009897413,-500.0,0.00038904,30]
[340303782,1729009897423,-500.0,0.00038904,30]
[340303783,1729009897432,-500.0,0.00038904,30]
[340303784,1729009897442,-500.0,0.00038904,30]
[340303785,1729009897451,-500.0,0.00038904,30]
[340303786,1729009897460,-500.0,0.00038904,30]
[340303787,1729009897470,-500.0,0.00038904,30]
[340303788,1729009897480,-500.0,0.00038904,30]
[340303789,1729009897489,-500.0,0.00038904,30]
[340303790,1729009897596,-1164.43,0.00038904,30]
[340303791,1729009897606,-500.0,0.00038904,30]
[340303792,1729009897617,-500.0,0.00038904,30]
[340303793,1729009897629,-500.0,0.00038904,30]
[340303794,1729009897640,-500.0,0.00038904,30]
[340303795,1729009897651,-216.59238946,0.00038904,30]
[340303796,1729009897663,-500.0,0.00038904,30]
[340303797,1729009897672,-500.0,0.00038904,7]
[340303798,1729009897682,-500.0,0.00038904,30]
[340303799,1729009897691,-500.0,0.00038904,30]
[340303800,1729009897700,-500.0,0.00038904,30]
[340303801,1729009897709,-500.0,0.00038904,30]
[340303802,1729009897719,-500.0,0.00038904,30]
[340303803,1729009897728,-400.0,0.00038904,30]
[340303804,1729009897737,-500.0,0.00038904,30]
[340303805,1729009897747,-500.0,0.00038904,30]
[340303806,1729009897756,-500.0,0.00038904,30]
[340303807,1729009897765,-632.25,0.00038904,30]
[340303808,1729009897774,-500.0,0.00038904,30]
[340303809,1729009897784,-493.12,0.00038904,30]
[340303810,1729009897794,-500.0,0.00038904,30]
[340303811,1729009897803,-500.0,0.00038904,30]
[340303812,1729009897812,-459.98576662,0.00038904,30]
[340303813,1729009897822,-500.0,0.00038904,30]
[340303814,1729009897831,-500.0,0.00038904,30]
[340303815,1729009897840,-500.0,0.00038904,30]
[340303816,1729009897850,-500.0,0.00038904,30]
[340303817,1729009897859,-698.17,0.00038904,30]
[340303818,1729009897868,-500.0,0.00038904,30]
[340303819,1729009897880,-529.92634706,0.00038904,30]
[340303820,1729009897889,-500.0,0.00038904,30]
[340303821,1729009897898,-500.0,0.00038904,30]
[340303822,1729009897908,-552.75130124,0.00038904,30]
[340303823,1729009897918,-500.0,0.00038904,30]
[340303824,1729009897927,-228.41118043,0.00038904,30]
[340303825,1729009897936,-551.47157415,0.00038904,30]
[340303826,1729009897946,-500.0,0.00038904,30]
[340303827,1729009897956,-500.0,0.00038904,30]
[340303828,1729009897965,-500.0,0.00038904,30]
[340303829,1729009897975,-581.31750423,0.00038904,30]
[340303830,1729009897984,-175.34489785,0.00038904,30]
[340303831,1729009897994,-500.0,0.00038904,30]
[340303832,1729009898003,-500.0,0.00038904,30]
[340303833,1729009898012,-500.0,0.00038904,30]
[340303834,1729009898022,-500.0,0.00038904,30]
[340303835,1729009898031,-515.35697896,0.00038904,30]
[340303836,1729009898043,-500.0,0.00038904,30]
[340303837,1729009898053,-500.0,0.00038904,30]
[340303838,1729009898062,-500.0,0.00038904,30]
[340303839,1729009898071,-512.1,0.00038904,30]
[340303840,1729009898081,-500.0,0.00038904,30]
[340303841,1729009898091,-500.0,0.00038904,30]
[340303842,1729009898100,-500.0,0.00038904,30]
[340303843,1729009898109,-500.0,0.00038904,30]
[340303844,1729009898119,-3244.71,0.00038904,30]
[340303845,1729009898133,-500.0,0.00038904,30]
[340303846,1729009898143,-816.57,0.00038904,30]
[340303847,1729009898152,-500.0,0.00038904,30]
[340303848,1729009898162,-500.0,0.00038904,30]
[340303849,1729009898174,-500.0,0.00038904,30]
[340303850,1729009898184,-545.66365912,0.00038904,30]
[340303851,1729009898195,-376.11860551,0.00038904,30]
[340303852,1729009898208,-500.0,0.00038904,30]
[340303853,1729009898219,-500.0,0.00038904,30]
[340303854,1729009898228,-500.0,0.00038904,30]
[340303855,1729009898237,-500.0,0.00038904,30]
[340303856,1729009898247,-500.0,0.00038904,30]
[340303857,1729009898257,-500.0,0.00038904,30]
[340303858,1729009898266,-570.02716134,0.00038904,30]
[340303859,1729009898276,-500.0,0.00038904,30]
[340303860,1729009898285,-948.78,0.00038904,30]
[340303861,1729009898295,-544.51,0.00038904,30]
[340303862,1729009898304,-500.0,0.00038904,30]
[340303863,1729009898314,-370.86191413,0.00038904,30]
[340303864,1729009898323,-500.0,0.00038904,30]
[340303865,1729009898332,-465.55949929,0.00038904,30]
[340303866,1729009898342,-501.43,0.00038904,30]
[340303867,1729009898352,-551.11,0.00038904,30]
[340303868,1729009898361,-500.0,0.00038904,30]
[340303869,1729009898370,-543.3412676,0.00038904,30]
[340303870,1729009898385,-350.20470075,0.00038904,30]
[340303871,1729009898394,-500.0,0.00038904,30]
[340303872,1729009898404,-1247.11,0.00038904,30]
[340303873,1729009898413,-500.0,0.00038904,30]
[340303874,1729009898423,-649.77,0.00038904,30]
[340303875,1729009898433,-500.0,0.00038904,30]
[340303876,1729009898443,-500.0,0.00038904,30]
[340303877,1729009898453,-278.16467163,0.00038904,30]
[340303878,1729009898463,-500.0,0.00038904,30]
[340303879,1729009898472,-799.26,0.00038904,30]
[340303880,1729009898482,-528.38030343,0.00038904,30]
[340303881,1729009898492,-526.22,0.00038904,30]
[340303882,1729009898501,-500.0,0.00038904,30]
[340303883,1729009898511,-683.6,0.00038904,30]
[340303884,1729009898521,-500.0,0.00038904,30]
[340303885,1729009898530,-500.0,0.00038904,30]
[340303886,1729009898540,-192.48249707,0.00038904,30]
[340303887,1729009898549,-500.0,0.00038904,30]
[340303888,1729009898559,-500.0,0.00038904,30]
[340303889,1729009898568,-521.41,0.00038904,30]
[340303890,1729009898578,-500.0,0.00038904,30]
[340303891,1729009898588,-500.0,0.00038904,30]
[340303892,1729009898597,-500.0,0.00038904,7]
[340303893,1729009898607,-500.0,0.00038904,30]
[340303894,1729009898616,-500.0,0.00038904,30]
[340303895,1729009898627,-500.0,0.00038904,30]
[340303896,1729009898636,-500.0,0.00038904,30]
[340303897,1729009898646,-990.07,0.00038904,30]
[340303898,1729009898656,-500.0,0.00038904,30]
[340303899,1729009898665,-500.0,0.00038904,30]
[340303900,1729009898675,-658.7,0.00038904,30]
[340303901,1729009898684,-500.0,0.00038904,30]
[340303902,1729009898694,-3681.08,0.00038904,30]
[340303903,1729009898703,-500.0,0.00038904,30]
[340303904,1729009898712,-500.0,0.00038904,30]
[340303905,1729009898722,-540.3171707,0.00038904,30]
[340303906,1729009898731,-500.0,0.00038904,30]
[340303907,1729009898741,-500.0,0.00038904,30]
[340303908,1729009898750,-548.11542368,0.00038904,30]
[340303909,1729009898760,-1724.34,0.00038904,30]
[340303910,1729009898769,-500.0,0.00038904,30]
[340303911,1729009898778,-500.0,0.00038904,30]
[340303912,1729009898788,-500.0,0.00038904,30]
[340303913,1729009898798,-500.0,0.00038904,30]
[340303914,1729009898808,-761.67,0.00038904,30]
[340303915,1729009898818,-500.0,0.00038904,30]
[340303916,1729009898828,-5876.9,0.00038904,30]
[340303917,1729009898837,-1121.68,0.00038904,30]
[340303918,1729009898847,-500.0,0.00038904,30]
[340303919,1729009898857,-529.95513003,0.00038904,30]
[340303920,1729009898866,-584.13,0.00038904,30]
[340303921,1729009898877,-771.59,0.00038904,30]
[340303922,1729009898886,-505.33667771,0.00038904,30]
[340303923,1729009898895,-500.0,0.00038904,30]
[340303924,1729009898905,-500.0,0.00038904,30]
[340303925,1729009898915,-1991.97,0.00038904,30]
[340303926,1729009898924,-500.0,0.00038904,30]
[340303927,1729009898933,-539.76,0.00038904,30]
[340303928,1729009898943,-500.0,0.00038904,30]
[340303929,1729009898953,-504.92657201,0.00038904,30]
[340303930,1729009898963,-633.15,0.00038904,30]
[340303931,1729009898972,-754.14,0.00038904,30]
[340303932,1729009898981,-663.08,0.00038904,30]
[340303933,1729009898991,-500.0,0.00038904,30]
[340303934,1729009899001,-500.0,0.00038904,30]
[340303935,1729009899011,-500.0,0.00038904,30]
[340303936,1729009899020,-525.32,0.00038904,30]
[340303937,1729009899030,-193.75625884,0.00038904,30]
[340303938,1729009899040,-756.39,0.00038904,30]
[340303939,1729009899049,-1171.6,0.00038904,30]
[340303940,1729009899058,-554.41,0.00038904,30]
[340303941,1729009899068,-407.15022623,0.00038904,30]
[340303942,1729009899077,-500.0,0.00038904,30]
[340303943,1729009899086,-500.0,0.00038904,30]
[340303944,1729009899096,-553.39,0.00038904,30]
[340303945,1729009899104,-947.4,0.00038904,30]
[340303946,1729009899114,-500.0,0.00038904,30]
[340303947,1729009899126,-500.0,0.00038904,30]
[340303948,1729009899137,-538.31916492,0.00038904,30]
[340303949,1729009899147,-500.0,0.00038904,30]
[340303950,1729009899155,-500.0,0.00038904,30]
[340303951,1729009899165,-513.31,0.00038904,30]
[340303952,1729009899175,-500.0,0.00038904,30]
[340303953,1729009899184,-500.0,0.00038904,30]
[340303954,1729009899194,-9763.37,0.00038904,30]
[340303955,1729009899205,-500.0,0.00038904,30]
[340303956,1729009899214,-500.0,0.00038904,30]
[340303957,1729009899223,-500.0,0.00038904,30]
[340303958,1729009899233,-407.72891086,0.00038904,30]
[340303959,1729009899242,-718.5,0.00038904,30]
[340303960,1729009899252,-606.02,0.00038904,30]
[340303961,1729009899261,-500.0,0.00038904,30]
[340303962,1729009899270,-2997.52,0.00038904,21]
[340303963,1729009899279,-500.0,0.00038904,30]
[340303964,1729009899288,-1041.99885653,0.00038915,2]
[340303965,1729009899297,-160.0,0.00038933,4]
[340303966,1729009899307,-156.1,0.00038962,7]
[340303967,1729009899316,-1000.0,0.00039,120]
[340303968,1729009899325,-1000.0,0.00039,30]
[340303969,1729009899335,-326.5533116,0.00039,2]
[340303970,1729009899344,-9239.0,0.00039,60]
[340303971,1729009899353,-253.0,0.00039,2]
[340303972,1729009899363,-253.0,0.00039,2]
[340303973,1729009899372,-500.0,0.00039007,10]
[340303974,1729009899384,-500.0,0.00039007,10]
[340303975,1729009899394,-500.0,0.00039007,10]
[340303976,1729009899403,-500.0,0.00039007,10]
[340303977,1729009899412,-500.0,0.00039007,10]
[340303978,1729009899421,-500.0,0.00039007,10]
[340303979,1729009899431,-500.0,0.00039007,10]
[340303980,1729009899440,-500.0,0.00039007,10]
[340303981,1729009899449,-500.0,0.00039007,10]
[340303982,1729009899459,-200.32065397,0.00039007,10]
[340303983,1729009899469,-500.0,0.00039007,10]
[340303984,1729009899478,-500.0,0.00039007,10]
[340303985,1729009899488,-500.0,0.00039007,10]
[340303986,1729009899498,-500.0,0.00039007,10]
[340303987,1729009899507,-500.0,0.00039007,10]
[340303988,1729009899517,-500.0,0.00039007,10]
[340303989,1729009899526,-500.0,0.00039007,10]
[340303990,1729009899536,-500.0,0.00039007,10]
[340303991,1729009899545,-500.0,0.00039007,10]
[340303992,1729009899554,-500.0,0.00039007,10]
[340303993,1729009899563,-500.0,0.00039007,10]
[340303994,1729009899573,-500.0,0.00039007,10]
[340303995,1729009899583,-500.0,0.00039007,10]
[340303996,1729009899592,-500.0,0.00039007,10]
[340303997,1729009899601,-500.0,0.00039007,10]
[340303998,1729009899611,-500.0,0.00039007,10]
[340303999,1729009899621,-500.0,0.00039007,10]
[340304000,1729009899632,-500.0,0.00039007,10]
[340304001,1729009899642,-500.43898588,0.00039007,10]
[340304002,1729009899651,-500.0,0.00039007,10]
[340304003,1729009899661,-500.0,0.00039007,10]
[340304004,1729009899671,-500.0,0.00039007,10]
[340304005,1729009899681,-500.0,0.00039007,10]
[340304006,1729009899690,-500.0,0.00039007,10]
[340304007,1729009899701,-500.0,0.00039007,10]
[340304008,1729009899710,-500.0,0.00039007,10]
[340304009,1729009899719,-500.0,0.00039007,10]
[340304010,1729009899729,-1211.51545439,0.00039008,14]
[340304011,1729009899738,-4129.1432784,0.00039025,2]
[340304012,1729009899747,-1500.0,0.00039067,2]
[340304013,1729009899756,-500.0,0.00039108,10]
[340304014,1729009899766,-500.0,0.00039108,10]
[340304015,1729009899775,-700.0,0.00039108,10]
[340304016,1729009899784,-700.0,0.00039108,10]
[340304017,1729009899793,-700.0,0.00039108,10]
[340304018,1729009899803,-700.0,0.00039108,10]
[340304019,1729009899812,-700.0,0.00039108,10]
[340304020,1729009899822,-700.0,0.00039108,10]
[340304021,1729009899831,-700.0,0.00039108,10]
[340304022,1729009899840,-700.0,0.00039108,10]
[340304023,1729009899849,-700.0,0.00039108,10]
[340304024,1729009899859,-700.0,0.00039108,10]
[340304025,1729009899869,-700.0,0.00039108,10]
[340304026,1729009899880,-700.0,0.00039108,10]
[340304027,1729009899890,-700.0,0.00039108,10]
[340304028,1729009899900,-700.0,0.00039108,10]
[340304029,1729009899910,-1000.0,0.00039263,2]
[340304030,1729009899920,-1500.0,0.00039333,2]
[340304031,1729009899930,-156.1,0.00039353,7]
[340304032,1729009899939,-1362.95488619,0.00039398,16]
[340304033,1729009899949,-499.999999,0.00039425,2]
[340304034,1729009899959,-43160.96759693,0.00039425,32]
[340304035,1729009899969,-4168.2,0.00039425,7]
[340304036,1729009899979,-15336.7029363,0.00039425,2]
[340304037,1729009899989,-667679.14051449,0.00039425,120]
[340304038,1729009899998,-21188.82702221,0.00039425,120]
[340304039,1729009900008,-182.42681526,0.0003944,2]
[340304040,1729009900018,-3171.19613046,0.0003944,2]
[340304041,1729009900028,-155.0,0.00039441,2]
[340304042,1729009900038,-155.0,0.00039441,2]
[340304043,1729009900049,-155.0,0.00039441,2]
[340304044,1729009900060,-155.0,0.00039441,2]
[340304045,1729009900071,-155.0,0.00039441,2]
[340304046,1729009900081,-306.22755388,0.00039441,2]
[340304047,1729009900090,-500.0,0.00039452,30]
[340304048,1729009900100,-500.0,0.00039452,30]
[340304049,1729009900109,-1269.68,0.00039452,30]
[340304050,1729009900120,-500.0,0.00039452,30]
[340304051,1729009900133,-957.5,0.00039452,30]
[340304052,1729009900144,-946.36,0.00039452,30]
[340304053,1729009900153,-519.6,0.00039452,30]
[340304054,1729009900163,-500.0,0.00039452,30]
[340304055,1729009900172,-500.0,0.00039452,30]
[340304056,1729009900182,-608.65926391,0.00039452,30]
[340304057,1729009900191,-476.60919698,0.00039452,30]
[340304058,1729009900202,-574.12931088,0.00039452,30]
[340304059,1729009900212,-500.0,0.00039452,30]
[340304060,1729009900223,-1000.0,0.00039452,30]
[340304061,1729009900232,-500.0,0.00039452,30]
[340304062,1729009900242,-545.0,0.00039452,30]
[340304063,1729009900253,-197.22264429,0.00039452,30]
[340304064,1729009900263,-500.0,0.00039452,30]
[340304065,1729009900274,-500.0,0.00039452,30]
[340304066,1729009900283,-500.0,0.00039452,30]
[340304067,1729009900294,-500.0,0.00039452,30]
[340304068,1729009900304,-727.25,0.00039452,30]
[340304069,1729009900315,-548.13,0.00039452,30]
[340304070,1729009900325,-834.78,0.00039452,30]
[340304071,1729009900334,-500.0,0.00039452,30]
[340304072,1729009900344,-500.0,0.00039452,30]
[340304073,1729009900354,-192.04981446,0.00039452,30]
[340304074,1729009900364,-500.0,0.00039452,30]
[340304075,1729009900377,-500.0,0.00039452,30]
[340304076,1729009900386,-500.0,0.00039452,30]
[340304077,1729009900396,-500.0,0.00039452,30]
[340304078,1729009900406,-500.0,0.00039452,30]
[340304079,1729009900416,-500.0,0.00039452,30]
[340304080,1729009900426,-1164.43,0.00039452,30]
[340304081,1729009900436,-500.0,0.00039452,30]
[340304082,1729009900446,-500.0,0.00039452,30]
[340304083,1729009900456,-500.0,0.00039452,30]
[340304084,1729009900466,-500.0,0.00039452,30]
[340304085,1729009900477,-193.82570205,0.00039452,30]
[340304086,1729009900487,-500.0,0.00039452,7]
[340304087,1729009900497,-500.0,0.00039452,30]
[340304088,1729009900507,-500.0,0.00039452,30]
[340304089,1729009900516,-500.0,0.00039452,30]
[340304090,1729009900526,-591.21913326,0.00039452,30]
[340304091,1729009900536,-500.0,0.00039452,30]
[340304092,1729009900546,-393.41226602,0.00039452,30]
[340304093,1729009900556,-500.0,0.00039452,30]
[340304094,1729009900565,-500.0,0.00039452,30]
[340304095,1729009900575,-632.25,0.00039452,30]
[340304096,1729009900585,-500.0,0.00039452,30]
[340304097,1729009900595,-500.0,0.00039452,30]
[340304098,1729009900606,-500.0,0.00039452,30]
[340304099,1729009900616,-500.0,0.00039452,30]
[340304100,1729009900627,-500.0,0.00039452,30]
[340304101,1729009900637,-258.05064069,0.00039452,30]
[340304102,1729009900647,-178.02320098,0.00039452,30]
[340304103,1729009900657,-698.17,0.00039452,30]
[340304104,1729009900667,-500.0,0.00039452,30]
[340304105,1729009900677,-500.0,0.00039452,30]
[340304106,1729009900687,-447.65997821,0.00039452,30]
[340304107,1729009900696,-500.0,0.00039452,30]
[340304108,1729009900706,-500.0,0.00039452,30]
[340304109,1729009900716,-500.0,0.00039452,30]
[340304110,1729009900726,-500.0,0.00039452,30]
[340304111,1729009900736,-384.95027461,0.00039452,30]
[340304112,1729009900746,-500.0,0.00039452,30]
[340304113,1729009900756,-500.0,0.00039452,30]
[340304114,1729009900766,-585.48180524,0.00039452,30]
[340304115,1729009900776,-500.0,0.00039452,30]
[340304116,1729009900786,-502.52146999,0.00039452,30]
[340304117,1729009900796,-500.0,0.00039452,30]
[340304118,1729009900805,-512.1,0.00039452,30]
[340304119,1729009900815,-500.0,0.00039452,30]
[340304120,1729009900826,-500.0,0.00039452,30]
[340304121,1729009900836,-500.0,0.00039452,30]
[340304122,1729009900846,-500.0,0.00039452,30]
[340304123,1729009900856,-3244.71,0.00039452,30]
[340304124,1729009900866,-500.0,0.00039452,30]
[340304125,1729009900877,-816.57,0.00039452,30]
[340304126,1729009900886,-500.0,0.00039452,30]
[340304127,1729009900897,-157.04164593,0.00039452,30]
[340304128,1729009900907,-500.0,0.00039452,30]
[340304129,1729009900919,-500.0,0.00039452,30]
[340304130,1729009900929,-500.0,0.00039452,30]
[340304131,1729009900940,-463.53462559,0.00039452,30]
[340304132,1729009900950,-500.0,0.00039452,30]
[340304133,1729009900960,-500.0,0.00039452,30]
[340304134,1729009900971,-540.2735024,0.00039452,30]
[340304135,1729009900981,-500.0,0.00039452,30]
[340304136,1729009900991,-948.78,0.00039452,30]
[340304137,1729009901001,-544.51,0.00039452,30]
[340304138,1729009901011,-500.0,0.00039452,30]
[340304139,1729009901022,-500.0,0.00039452,30]
[340304140,1729009901032,-501.43,0.00039452,30]
[340304141,1729009901041,-551.11,0.00039452,30]
[340304142,1729009901051,-500.0,0.00039452,30]
[340304143,1729009901061,-500.0,0.00039452,30]
[340304144,1729009901071,-1247.11,0.00039452,30]
[340304145,1729009901081,-500.0,0.00039452,30]
[340304146,1729009901091,-649.77,0.00039452,30]
[340304147,1729009901100,-642.16224563,0.00039452,30]
[340304148,1729009901110,-500.0,0.00039452,30]
[340304149,1729009901120,-500.0,0.00039452,30]
[340304150,1729009901134,-799.26,0.00039452,30]
[340304151,1729009901144,-526.22,0.00039452,30]
[340304152,1729009901153,-500.0,0.00039452,30]
[340304153,1729009901163,-683.6,0.00039452,30]
[340304154,1729009901316,-500.0,0.00039452,30]
[340304155,1729009901327,-500.0,0.00039452,30]
[340304156,1729009901337,-527.81234113,0.00039452,30]
[340304157,1729009901347,-500.0,0.00039452,30]
[340304158,1729009901356,-521.41,0.00039452,30]